[Event "Titled Tuesday Blitz May 30 Late 2023"]
[White "Gomez Barrera, Javiera Belen"]
[Black "OPQRC"]
[WhiteFideId "3418723"]
[WhiteElo "2119"]
[BlackElo "2561"]
[Result "1-0"]
[Round "08"]
[TimeControl "180+2"]
[Date "2023.05.31"]
[WhiteClock "0:00:06"]
[BlackClock "0:00:05"]

1. e4 {[%clk 0:03:00]}  c5 {[%clk 0:02:58]} 2. Nf3 {[%clk 0:03:01]}  Nc6 {[%clk 0:02:59]} 3. d4 {[%clk 0:03:01]}  cxd4 {[%clk 0:03:00]} 4. Nxd4 {[%clk 0:03:02]}  Nf6 {[%clk 0:03:00]} 5. Nc3 {[%clk 0:03:02]}  e6 {[%clk 0:02:59]} 6. Ndb5 {[%clk 0:02:54]}  Bb4 {[%clk 0:02:56]} 7. a3 {[%clk 0:02:53]}  Bxc3+ {[%clk 0:02:56]} 8. Nxc3 {[%clk 0:02:53]}  d5 {[%clk 0:02:57]} 9. exd5 {[%clk 0:02:52]}  exd5 {[%clk 0:02:56]} 10. Bd3 {[%clk 0:02:52]}  O-O {[%clk 0:02:56]} 11. O-O {[%clk 0:02:52]}  h6 {[%clk 0:02:57]} 12. Bf4 {[%clk 0:02:48]}  Re8 {[%clk 0:02:57]} 13. h3 {[%clk 0:02:44]}  d4 {[%clk 0:02:52]} 14. Nb5 {[%clk 0:02:32]}  Nd5 {[%clk 0:02:50]} 15. Bg3 {[%clk 0:02:31]}  Be6 {[%clk 0:02:10]} 16. Nd6 {[%clk 0:02:21]}  Re7 {[%clk 0:02:10]} 17. Re1 {[%clk 0:02:20]}  Rd7 {[%clk 0:02:05]} 18. Nf5 {[%clk 0:01:47]}  Bxf5 {[%clk 0:01:58]} 19. Bxf5 {[%clk 0:01:46]}  Re7 {[%clk 0:01:58]} 20. Qf3 {[%clk 0:01:44]}  Nf6 {[%clk 0:01:27]} 21. Bd3 {[%clk 0:01:33]}  Qe8 {[%clk 0:01:15]} 22. Rxe7 {[%clk 0:01:28]}  Qxe7 {[%clk 0:01:16]} 23. Qf5 {[%clk 0:01:17]}  Re8 {[%clk 0:00:46]} 24. Bh4 {[%clk 0:01:16]}  Qe5 {[%clk 0:00:31]} 25. Bxf6 {[%clk 0:01:11]}  Qxf5 {[%clk 0:00:31]} 26. Bxf5 {[%clk 0:01:12]}  gxf6 {[%clk 0:00:31]} 27. Kf1 {[%clk 0:01:10]}  Re5 {[%clk 0:00:30]} 28. Bd3 {[%clk 0:01:09]}  Kf8 {[%clk 0:00:29]} 29. f4 {[%clk 0:01:00]}  Re3 {[%clk 0:00:24]} 30. Re1 {[%clk 0:01:00]}  Rxe1+ {[%clk 0:00:22]} 31. Kxe1 {[%clk 0:01:01]}  Ke7 {[%clk 0:00:22]} 32. Ke2 {[%clk 0:01:01]}  Ke6 {[%clk 0:00:13]} 33. g4 {[%clk 0:00:57]}  Nd8 {[%clk 0:00:05]} 34. Kf3 {[%clk 0:00:57]}  Kd5 {[%clk 0:00:04]} 35. b3 {[%clk 0:00:45]}  a5 {[%clk 0:00:04]} 36. Kg3 {[%clk 0:00:39]}  Ne6 {[%clk 0:00:03]} 37. Bc4+ {[%clk 0:00:33]}  Kc5 {[%clk 0:00:03]} 38. h4 {[%clk 0:00:21]}  a4 {[%clk 0:00:01]} 39. Bd3 {[%clk 0:00:05]}  axb3 {[%clk 0:00:01]} 40. cxb3 {[%clk 0:00:06]}  b5 {[%clk 0:00:01]} 41. Kf3 {[%clk 0:00:03]}  b4 {[%clk 0:00:02]} 42. a4 {[%clk 0:00:02]}  Nc7 {[%clk 0:00:01]} 43. Bc4 {[%clk 0:00:03]}  Nd5 {[%clk 0:00:01]} 44. Ke4 {[%clk 0:00:03]}  Nc3+ {[%clk 0:00:02]} 45. Kd3 {[%clk 0:00:04]}  Na2 {[%clk 0:00:02]} 46. Bxf7 {[%clk 0:00:04]}  Nc1+ {[%clk 0:00:02]} 47. Kd2 {[%clk 0:00:04]}  Na2 {[%clk 0:00:01]} 48. g5 {[%clk 0:00:04]}  fxg5 {[%clk 0:00:01]} 49. fxg5 {[%clk 0:00:05]}  hxg5 {[%clk 0:00:02]} 50. h5 {[%clk 0:00:06]}  Nc3 {[%clk 0:00:02]} 51. h6 {[%clk 0:00:06]}  Ne4+ {[%clk 0:00:02]} 52. Kd3 {[%clk 0:00:06]}  Nf6 {[%clk 0:00:03]} 53. Bg6 {[%clk 0:00:05]}  g4 {[%clk 0:00:04]} 54. h7 {[%clk 0:00:02]}  Nxh7 {[%clk 0:00:03]} 55. Bxh7 {[%clk 0:00:03]}  Kd5 {[%clk 0:00:03]} 56. Be4+ {[%clk 0:00:03]}  Ke5 {[%clk 0:00:04]} 57. Bg2 {[%clk 0:00:04]}  g3 {[%clk 0:00:04]} 58. a5 {[%clk 0:00:05]}  Kd6 {[%clk 0:00:05]} 59. a6 {[%clk 0:00:05]}  Kc7 {[%clk 0:00:05]} 60. a7 {[%clk 0:00:06]} 1-0


[Site "https://www.chess.com"]

[Event "Titled Tuesday Blitz May 30 Late 2023"]
[White "D`Arruda, Ricardo D."]
[Black "Urbina Perez, Juan Antonio"]
[WhiteFideId "100692"]
[BlackFideId "2217368"]
[WhiteElo "2514"]
[BlackElo "2197"]
[Result "0-1"]
[Round "08"]
[TimeControl "180+2"]
[Date "2023.05.31"]
[WhiteClock "0:01:32"]
[BlackClock "0:01:52"]

1. Nf3 {[%clk 0:02:52]}  d5 {[%clk 0:02:59]} 2. d4 {[%clk 0:02:52]}  Nf6 {[%clk 0:02:57]} 3. g3 {[%clk 0:02:52]}  e6 {[%clk 0:02:57]} 4. Bg2 {[%clk 0:02:52]}  Be7 {[%clk 0:02:57]} 5. O-O {[%clk 0:02:52]}  O-O {[%clk 0:02:58]} 6. c4 {[%clk 0:02:52]}  c6 {[%clk 0:02:59]} 7. Nc3 {[%clk 0:02:52]}  b6 {[%clk 0:02:59]} 8. Qc2 {[%clk 0:02:50]}  Ba6 {[%clk 0:02:59]} 9. Ne5 {[%clk 0:02:47]}  Nfd7 {[%clk 0:02:55]} 10. cxd5 {[%clk 0:02:40]}  Nxe5 {[%clk 0:02:49]} 11. dxe5 {[%clk 0:02:41]}  cxd5 {[%clk 0:02:49]} 12. Rd1 {[%clk 0:02:38]}  Qc7 {[%clk 0:02:34]} 13. e4 {[%clk 0:02:35]}  d4 {[%clk 0:02:24]} 14. Rxd4 {[%clk 0:02:34]}  Nc6 {[%clk 0:02:24]} 15. Ra4 {[%clk 0:02:21]}  Bb7 {[%clk 0:02:22]} 16. f4 {[%clk 0:02:15]}  b5 {[%clk 0:02:14]} 17. Nd5 {[%clk 0:01:32]}  exd5 {[%clk 0:02:08]} 18. exd5 {[%clk 0:01:33]}  bxa4 {[%clk 0:02:06]} 19. dxc6 {[%clk 0:01:32]}  Rac8 {[%clk 0:01:52]} 0-1


[Site "https://www.chess.com"]

[Event "Titled Tuesday Blitz May 30 Late 2023"]
[White "Senft, Sean"]
[Black "Rose, Felix"]
[WhiteFideId "2044960"]
[BlackFideId "5105722"]
[WhiteElo "1989"]
[BlackElo "2039"]
[Result "1-0"]
[Round "08"]
[TimeControl "180+2"]
[Date "2023.05.31"]
[WhiteClock "0:01:19"]
[BlackClock "0:00:05"]

1. d4 {[%clk 0:03:00]}  d5 {[%clk 0:02:59]} 2. c4 {[%clk 0:03:01]}  e6 {[%clk 0:02:59]} 3. Nc3 {[%clk 0:03:02]}  Nf6 {[%clk 0:02:59]} 4. cxd5 {[%clk 0:03:02]}  exd5 {[%clk 0:03:00]} 5. Bg5 {[%clk 0:03:03]}  c6 {[%clk 0:03:00]} 6. e3 {[%clk 0:03:03]}  Be7 {[%clk 0:03:01]} 7. Bd3 {[%clk 0:03:04]}  Nbd7 {[%clk 0:03:01]} 8. Nf3 {[%clk 0:03:04]}  h6 {[%clk 0:03:02]} 9. Bh4 {[%clk 0:03:04]}  Nh5 {[%clk 0:03:02]} 10. Bxe7 {[%clk 0:03:03]}  Qxe7 {[%clk 0:03:03]} 11. O-O {[%clk 0:03:01]}  O-O {[%clk 0:03:03]} 12. Rc1 {[%clk 0:02:58]}  Nb6 {[%clk 0:02:58]} 13. Ne5 {[%clk 0:02:55]}  Nf6 {[%clk 0:02:20]} 14. f4 {[%clk 0:02:53]}  g6 {[%clk 0:02:08]} 15. Qe1 {[%clk 0:02:52]}  Ng4 {[%clk 0:01:57]} 16. h3 {[%clk 0:02:44]}  Nxe5 {[%clk 0:01:40]} 17. fxe5 {[%clk 0:02:45]}  Qg5 {[%clk 0:01:39]} 18. Rf6 {[%clk 0:02:41]}  Bxh3 {[%clk 0:01:33]} 19. Qf2 {[%clk 0:02:42]}  Nd7 {[%clk 0:01:26]} 20. Rf3 {[%clk 0:02:36]}  Bg4 {[%clk 0:01:20]} 21. Rg3 {[%clk 0:02:36]}  Rae8 {[%clk 0:01:11]} 22. Be2 {[%clk 0:02:34]}  h5 {[%clk 0:01:08]} 23. Bxg4 {[%clk 0:02:32]}  hxg4 {[%clk 0:01:08]} 24. Qe2 {[%clk 0:02:20]}  f5 {[%clk 0:01:06]} 25. Rf1 {[%clk 0:02:11]}  Kg7 {[%clk 0:00:57]} 26. Nd1 {[%clk 0:02:09]}  Rh8 {[%clk 0:00:48]} 27. Qf2 {[%clk 0:02:04]}  Nf8 {[%clk 0:00:47]} 28. Qf4 {[%clk 0:02:03]}  Qxf4 {[%clk 0:00:47]} 29. exf4 {[%clk 0:02:03]}  Ne6 {[%clk 0:00:47]} 30. Rd3 {[%clk 0:01:56]}  Ref8 {[%clk 0:00:33]} 31. Nc3 {[%clk 0:01:56]}  g5 {[%clk 0:00:29]} 32. Ne2 {[%clk 0:01:57]}  Kg6 {[%clk 0:00:28]} 33. Rb3 {[%clk 0:01:56]}  Rf7 {[%clk 0:00:20]} 34. Ra3 {[%clk 0:01:50]}  a6 {[%clk 0:00:20]} 35. b4 {[%clk 0:01:43]}  gxf4 {[%clk 0:00:20]} 36. Nxf4+ {[%clk 0:01:43]}  Nxf4 {[%clk 0:00:20]} 37. Rxf4 {[%clk 0:01:44]}  Kg5 {[%clk 0:00:21]} 38. Rf1 {[%clk 0:01:41]}  f4 {[%clk 0:00:21]} 39. Kf2 {[%clk 0:01:36]}  Kf5 {[%clk 0:00:20]} 40. Re1 {[%clk 0:01:34]}  Re7 {[%clk 0:00:21]} 41. Rb3 {[%clk 0:01:33]}  Rh2 {[%clk 0:00:19]} 42. a4 {[%clk 0:01:26]}  Reh7 {[%clk 0:00:14]} 43. b5 {[%clk 0:01:26]}  axb5 {[%clk 0:00:11]} 44. axb5 {[%clk 0:01:26]}  f3 {[%clk 0:00:11]} 45. Rg1 {[%clk 0:01:26]}  cxb5 {[%clk 0:00:07]} 46. Rxb5 {[%clk 0:01:26]}  Rxg2+ {[%clk 0:00:07]} 47. Rxg2 {[%clk 0:01:26]}  fxg2 {[%clk 0:00:08]} 48. Rxd5 {[%clk 0:01:25]}  Rf7 {[%clk 0:00:04]} 49. Kxg2 {[%clk 0:01:23]}  Ke4 {[%clk 0:00:04]} 50. Rd6 {[%clk 0:01:23]}  Rf3 {[%clk 0:00:04]} 51. e6 {[%clk 0:01:22]}  Re3 {[%clk 0:00:04]} 52. d5 {[%clk 0:01:20]}  Kd4 {[%clk 0:00:04]} 53. Rd7 {[%clk 0:01:19]}  Kc5 {[%clk 0:00:04]} 54. e7 {[%clk 0:01:18]}  b5 {[%clk 0:00:04]} 55. d6 {[%clk 0:01:18]}  Kc6 {[%clk 0:00:04]} 56. Rd8 {[%clk 0:01:18]}  b4 {[%clk 0:00:03]} 57. Kf2 {[%clk 0:01:18]}  Re6 {[%clk 0:00:03]} 58. e8=Q+ {[%clk 0:01:17]}  Rxe8 {[%clk 0:00:03]} 59. Rxe8 {[%clk 0:01:18]}  b3 {[%clk 0:00:04]} 60. Rb8 {[%clk 0:01:18]}  Kxd6 {[%clk 0:00:05]} 61. Rxb3 {[%clk 0:01:18]}  Ke5 {[%clk 0:00:05]} 62. Kg3 {[%clk 0:01:19]} 1-0


[Site "https://www.chess.com"]

[Event "Titled Tuesday Blitz May 30 Late 2023"]
[White "Padalka, Artem"]
[Black "Womacka, Mathias"]
[WhiteFideId "14118637"]
[BlackFideId "4611390"]
[WhiteElo "2073"]
[BlackElo "2377"]
[Result "1/2-1/2"]
[Round "08"]
[TimeControl "180+2"]
[Date "2023.05.31"]
[WhiteClock "0:00:03"]
[BlackClock "0:00:41"]

1. e4 {[%clk 0:02:59]}  c5 {[%clk 0:02:59]} 2. Nf3 {[%clk 0:02:58]}  d6 {[%clk 0:02:59]} 3. d4 {[%clk 0:02:58]}  cxd4 {[%clk 0:03:00]} 4. Nxd4 {[%clk 0:02:58]}  Nf6 {[%clk 0:03:00]} 5. Nc3 {[%clk 0:02:58]}  a6 {[%clk 0:03:00]} 6. Be2 {[%clk 0:02:59]}  e5 {[%clk 0:03:00]} 7. Nb3 {[%clk 0:02:59]}  Be7 {[%clk 0:03:00]} 8. O-O {[%clk 0:02:58]}  O-O {[%clk 0:03:00]} 9. Be3 {[%clk 0:02:55]}  Be6 {[%clk 0:02:59]} 10. f4 {[%clk 0:02:54]}  exf4 {[%clk 0:02:58]} 11. Rxf4 {[%clk 0:02:53]}  Nc6 {[%clk 0:02:58]} 12. Qd2 {[%clk 0:02:37]}  Rc8 {[%clk 0:02:56]} 13. Raf1 {[%clk 0:02:36]}  b5 {[%clk 0:02:48]} 14. Nd5 {[%clk 0:02:28]}  Bxd5 {[%clk 0:02:41]} 15. exd5 {[%clk 0:02:29]}  Ne5 {[%clk 0:02:41]} 16. c3 {[%clk 0:02:18]}  Nfd7 {[%clk 0:02:37]} 17. a4 {[%clk 0:02:10]}  Bg5 {[%clk 0:02:33]} 18. Rb4 {[%clk 0:02:07]}  Bxe3+ {[%clk 0:02:32]} 19. Qxe3 {[%clk 0:02:07]}  bxa4 {[%clk 0:02:16]} 20. Rxa4 {[%clk 0:02:06]}  Rb8 {[%clk 0:02:16]} 21. Nd4 {[%clk 0:01:59]}  Rxb2 {[%clk 0:02:14]} 22. Rxa6 {[%clk 0:01:44]}  Re8 {[%clk 0:02:03]} 23. Qf4 {[%clk 0:01:25]}  Nf6 {[%clk 0:01:48]} 24. c4 {[%clk 0:01:05]}  Qc7 {[%clk 0:01:35]} 25. Qc1 {[%clk 0:00:49]}  Rb4 {[%clk 0:01:20]} 26. Rxf6 {[%clk 0:00:30]}  gxf6 {[%clk 0:01:17]} 27. Nf5 {[%clk 0:00:30]}  Qc5+ {[%clk 0:01:09]} 28. Kh1 {[%clk 0:00:29]}  Qf2 {[%clk 0:01:08]} 29. Nxd6 {[%clk 0:00:22]}  Qxe2 {[%clk 0:01:04]} 30. Nxe8 {[%clk 0:00:22]}  Nd3 {[%clk 0:01:04]} 31. Nxf6+ {[%clk 0:00:21]}  Kf8 {[%clk 0:00:53]} 32. Ra8+ {[%clk 0:00:18]}  Ke7 {[%clk 0:00:53]} 33. Re8+ {[%clk 0:00:18]}  Kxf6 {[%clk 0:00:52]} 34. Qh6+ {[%clk 0:00:06]}  Kf5 {[%clk 0:00:50]} 35. Qxh7+ {[%clk 0:00:06]}  Kf6 {[%clk 0:00:42]} 36. Qh6+ {[%clk 0:00:06]}  Kf5 {[%clk 0:00:42]} 37. Qh7+ {[%clk 0:00:05]}  Kf6 {[%clk 0:00:42]} 38. Qh8+ {[%clk 0:00:04]}  Kf5 {[%clk 0:00:41]} 39. Qh7+ {[%clk 0:00:03]} 1/2-1/2


[Site "https://www.chess.com"]

[Event "Titled Tuesday Blitz May 30 Late 2023"]
[White "Seletsky, Grigory"]
[Black "Figorito, Nick"]
[WhiteFideId "14112191"]
[BlackFideId "30923689"]
[WhiteElo "2491"]
[BlackElo "2340"]
[Result "1-0"]
[Round "08"]
[TimeControl "180+2"]
[Date "2023.05.31"]
[WhiteClock "0:01:19"]
[BlackClock "0:00:21"]

1. b3 {[%clk 0:02:52]}  b6 {[%clk 0:02:59]} 2. Bb2 {[%clk 0:02:52]}  Bb7 {[%clk 0:03:00]} 3. c4 {[%clk 0:02:52]}  Nf6 {[%clk 0:03:00]} 4. Nf3 {[%clk 0:02:52]}  e6 {[%clk 0:03:00]} 5. e3 {[%clk 0:02:51]}  Be7 {[%clk 0:03:00]} 6. Nc3 {[%clk 0:02:51]}  O-O {[%clk 0:03:01]} 7. Be2 {[%clk 0:02:51]}  d5 {[%clk 0:03:01]} 8. O-O {[%clk 0:02:51]}  dxc4 {[%clk 0:03:01]} 9. bxc4 {[%clk 0:02:50]}  c5 {[%clk 0:03:02]} 10. d3 {[%clk 0:02:50]}  Nc6 {[%clk 0:03:01]} 11. a3 {[%clk 0:02:50]}  Qd7 {[%clk 0:02:56]} 12. Qc2 {[%clk 0:02:51]}  Rfd8 {[%clk 0:02:55]} 13. Rfd1 {[%clk 0:02:51]}  Qe8 {[%clk 0:02:43]} 14. Rac1 {[%clk 0:02:52]}  Rac8 {[%clk 0:02:42]} 15. Ng5 {[%clk 0:02:51]}  h6 {[%clk 0:02:42]} 16. Nge4 {[%clk 0:02:50]}  Nxe4 {[%clk 0:02:42]} 17. Nxe4 {[%clk 0:02:50]}  e5 {[%clk 0:02:33]} 18. Nc3 {[%clk 0:02:42]}  Bf6 {[%clk 0:02:18]} 19. Nd5 {[%clk 0:02:38]}  Ne7 {[%clk 0:02:02]} 20. e4 {[%clk 0:02:25]}  Bxd5 {[%clk 0:01:50]} 21. cxd5 {[%clk 0:02:23]}  Ng6 {[%clk 0:01:51]} 22. g3 {[%clk 0:02:21]}  Be7 {[%clk 0:01:42]} 23. a4 {[%clk 0:02:19]}  Bd6 {[%clk 0:01:40]} 24. Bg4 {[%clk 0:02:16]}  Rb8 {[%clk 0:01:35]} 25. h4 {[%clk 0:02:17]}  Ne7 {[%clk 0:01:34]} 26. Bc3 {[%clk 0:02:10]}  f6 {[%clk 0:01:29]} 27. Be6+ {[%clk 0:02:10]}  Kh8 {[%clk 0:01:30]} 28. Ra1 {[%clk 0:02:05]}  a5 {[%clk 0:01:26]} 29. Qe2 {[%clk 0:02:00]}  Bc7 {[%clk 0:01:26]} 30. h5 {[%clk 0:01:57]}  Nc8 {[%clk 0:01:25]} 31. Rf1 {[%clk 0:01:53]}  Nd6 {[%clk 0:01:22]} 32. f4 {[%clk 0:01:53]}  Nf7 {[%clk 0:01:15]} 33. Bxf7 {[%clk 0:01:50]}  Qxf7 {[%clk 0:01:13]} 34. fxe5 {[%clk 0:01:50]}  Qd7 {[%clk 0:00:44]} 35. exf6 {[%clk 0:01:45]}  Qh3 {[%clk 0:00:36]} 36. fxg7+ {[%clk 0:01:43]}  Kh7 {[%clk 0:00:36]} 37. Qh2 {[%clk 0:01:39]}  Qg4 {[%clk 0:00:27]} 38. Rf7 {[%clk 0:01:33]}  Bxg3 {[%clk 0:00:21]} 39. Qg2 {[%clk 0:01:27]}  Qg5 {[%clk 0:00:21]} 40. g8=Q+ {[%clk 0:01:19]}  Kxg8 {[%clk 0:00:21]} 41. Rg7+ {[%clk 0:01:20]}  Qxg7 {[%clk 0:00:21]} 42. Bxg7 {[%clk 0:01:19]} 1-0


[Site "https://www.chess.com"]

[Event "Titled Tuesday Blitz May 30 Late 2023"]
[White "Sanhueza, Cristian"]
[Black "Skuhala, Barbara"]
[WhiteFideId "116815"]
[BlackFideId "14605465"]
[WhiteElo "2174"]
[BlackElo "2072"]
[Result "1/2-1/2"]
[Round "08"]
[TimeControl "180+2"]
[Date "2023.05.31"]
[WhiteClock "0:00:02"]
[BlackClock "0:01:41"]

1. e4 {[%clk 0:03:00]}  c5 {[%clk 0:02:57]} 2. Nf3 {[%clk 0:03:01]}  d6 {[%clk 0:02:57]} 3. d4 {[%clk 0:03:01]}  cxd4 {[%clk 0:02:57]} 4. Nxd4 {[%clk 0:03:02]}  Nf6 {[%clk 0:02:58]} 5. f3 {[%clk 0:03:03]}  a6 {[%clk 0:02:58]} 6. c4 {[%clk 0:03:03]}  e5 {[%clk 0:02:58]} 7. Nc2 {[%clk 0:03:03]}  Be7 {[%clk 0:02:57]} 8. Nc3 {[%clk 0:03:03]}  Be6 {[%clk 0:02:57]} 9. Be2 {[%clk 0:03:04]}  Nbd7 {[%clk 0:02:57]} 10. O-O {[%clk 0:03:04]}  Rc8 {[%clk 0:02:57]} 11. Ne3 {[%clk 0:03:05]}  O-O {[%clk 0:02:56]} 12. Ned5 {[%clk 0:02:53]}  Bxd5 {[%clk 0:02:55]} 13. exd5 {[%clk 0:02:32]}  Nh5 {[%clk 0:02:54]} 14. g3 {[%clk 0:02:26]}  f5 {[%clk 0:02:53]} 15. f4 {[%clk 0:02:24]}  Nhf6 {[%clk 0:02:51]} 16. fxe5 {[%clk 0:02:18]}  Nxe5 {[%clk 0:02:50]} 17. Rxf5 {[%clk 0:02:09]}  Nxc4 {[%clk 0:02:51]} 18. Bxc4 {[%clk 0:01:59]}  Rxc4 {[%clk 0:02:50]} 19. Qe2 {[%clk 0:01:59]}  Rc8 {[%clk 0:02:48]} 20. Bg5 {[%clk 0:01:27]}  h6 {[%clk 0:02:46]} 21. Be3 {[%clk 0:00:52]}  Nh7 {[%clk 0:02:38]} 22. Raf1 {[%clk 0:00:48]}  Rxf5 {[%clk 0:02:38]} 23. Rxf5 {[%clk 0:00:49]}  Bf6 {[%clk 0:02:38]} 24. Qd3 {[%clk 0:00:23]}  Bxc3 {[%clk 0:02:32]} 25. bxc3 {[%clk 0:00:23]}  Qe7 {[%clk 0:02:32]} 26. Bd4 {[%clk 0:00:16]}  Ng5 {[%clk 0:02:30]} 27. Kg2 {[%clk 0:00:15]}  Re8 {[%clk 0:02:27]} 28. h4 {[%clk 0:00:12]}  Ne4 {[%clk 0:02:23]} 29. Rf1 {[%clk 0:00:12]}  Qd7 {[%clk 0:02:12]} 30. Re1 {[%clk 0:00:11]}  Qg4 {[%clk 0:02:12]} 31. Qf3 {[%clk 0:00:10]}  Qxf3+ {[%clk 0:02:11]} 32. Kxf3 {[%clk 0:00:10]}  Nd2+ {[%clk 0:02:11]} 33. Kf2 {[%clk 0:00:09]}  Rxe1 {[%clk 0:02:12]} 34. Kxe1 {[%clk 0:00:10]}  Ne4 {[%clk 0:02:12]} 35. g4 {[%clk 0:00:09]}  Kf7 {[%clk 0:02:12]} 36. Ke2 {[%clk 0:00:08]}  b5 {[%clk 0:02:06]} 37. Kf3 {[%clk 0:00:06]}  Nd2+ {[%clk 0:02:06]} 38. Ke2 {[%clk 0:00:05]}  Nc4 {[%clk 0:02:03]} 39. Kd3 {[%clk 0:00:04]}  a5 {[%clk 0:02:01]} 40. a4 {[%clk 0:00:04]}  Na3 {[%clk 0:02:00]} 41. axb5 {[%clk 0:00:04]}  Nxb5 {[%clk 0:02:00]} 42. Bb6 {[%clk 0:00:03]}  a4 {[%clk 0:01:59]} 43. Kc4 {[%clk 0:00:04]}  Na3+ {[%clk 0:01:58]} 44. Kb4 {[%clk 0:00:04]}  Nc2+ {[%clk 0:01:58]} 45. Kxa4 {[%clk 0:00:04]}  Ke7 {[%clk 0:01:56]} 46. Kb3 {[%clk 0:00:04]}  Ne1 {[%clk 0:01:56]} 47. c4 {[%clk 0:00:04]}  Nf3 {[%clk 0:01:52]} 48. h5 {[%clk 0:00:05]}  Ne5 {[%clk 0:01:52]} 49. Bd4 {[%clk 0:00:04]}  Nxg4 {[%clk 0:01:51]} 50. Bxg7 {[%clk 0:00:05]}  Kd7 {[%clk 0:01:50]} 51. Kb4 {[%clk 0:00:04]}  Kc7 {[%clk 0:01:49]} 52. c5 {[%clk 0:00:04]}  dxc5+ {[%clk 0:01:49]} 53. Kxc5 {[%clk 0:00:05]}  Kd7 {[%clk 0:01:49]} 54. Kd4 {[%clk 0:00:05]}  Kd6 {[%clk 0:01:48]} 55. Ke4 {[%clk 0:00:05]}  Nf2+ {[%clk 0:01:48]} 56. Kf3 {[%clk 0:00:04]}  Nd3 {[%clk 0:01:47]} 57. Bxh6 {[%clk 0:00:04]}  Kxd5 {[%clk 0:01:42]} 58. Bg7 {[%clk 0:00:04]}  Ke6 {[%clk 0:01:42]} 59. Ke4 {[%clk 0:00:02]}  Nc5+ {[%clk 0:01:41]} 60. Kf4 {[%clk 0:00:02]}  Kf7 {[%clk 0:01:41]} 1/2-1/2


[Site "https://www.chess.com"]

[Event "Titled Tuesday Blitz May 30 Late 2023"]
[White "Cardozo Munar, Carlos Eduardo"]
[Black "Goffredo_Fofi"]
[WhiteFideId "4409477"]
[WhiteElo "2067"]
[BlackElo "2458"]
[Result "1-0"]
[Round "08"]
[TimeControl "180+2"]
[Date "2023.05.31"]
[WhiteClock "0:01:36"]
[BlackClock "0:00:01"]

1. e4 {[%clk 0:02:58]}  Nf6 {[%clk 0:02:46]} 2. e5 {[%clk 0:02:58]}  Nd5 {[%clk 0:02:45]} 3. c4 {[%clk 0:02:59]}  Nb6 {[%clk 0:02:45]} 4. c5 {[%clk 0:03:00]}  Nd5 {[%clk 0:02:45]} 5. Bc4 {[%clk 0:02:59]}  e6 {[%clk 0:02:45]} 6. Nc3 {[%clk 0:02:59]}  Nxc3 {[%clk 0:02:45]} 7. dxc3 {[%clk 0:02:56]}  Nc6 {[%clk 0:02:45]} 8. Bf4 {[%clk 0:02:52]}  Bxc5 {[%clk 0:02:44]} 9. Qg4 {[%clk 0:02:44]}  g5 {[%clk 0:02:44]} 10. Bxg5 {[%clk 0:02:40]}  Rg8 {[%clk 0:02:45]} 11. Bxd8 {[%clk 0:02:39]}  Rxg4 {[%clk 0:02:43]} 12. Be2 {[%clk 0:02:37]}  Rxg2 {[%clk 0:02:13]} 13. Bxc7 {[%clk 0:02:25]}  b6 {[%clk 0:01:55]} 14. Nh3 {[%clk 0:02:05]}  Bb7 {[%clk 0:01:54]} 15. Bf3 {[%clk 0:01:59]}  Rg7 {[%clk 0:01:49]} 16. b4 {[%clk 0:01:50]}  Be7 {[%clk 0:01:39]} 17. O-O-O {[%clk 0:01:50]}  Rc8 {[%clk 0:01:38]} 18. Bd6 {[%clk 0:01:47]}  Bxd6 {[%clk 0:01:26]} 19. Rxd6 {[%clk 0:01:46]}  Ba8 {[%clk 0:01:19]} 20. Rhd1 {[%clk 0:01:42]}  Nxe5 {[%clk 0:00:30]} 21. Bxa8 {[%clk 0:01:43]}  Rxa8 {[%clk 0:00:30]} 22. f4 {[%clk 0:01:43]}  Nc6 {[%clk 0:00:23]} 23. Rxd7 {[%clk 0:01:43]}  Rc8 {[%clk 0:00:23]} 24. Ng5 {[%clk 0:01:43]}  Nxb4 {[%clk 0:00:12]} 25. Nxe6 {[%clk 0:01:37]}  Rxc3+ {[%clk 0:00:12]} 26. Kb2 {[%clk 0:01:37]}  Rc2+ {[%clk 0:00:03]} 27. Kb3 {[%clk 0:01:37]}  fxe6 {[%clk 0:00:01]} 28. Rxg7 {[%clk 0:01:36]}  Rc5 {[%clk 0:00:01]} 29. Kxb4 {[%clk 0:01:36]} 1-0


[Site "https://www.chess.com"]

[Event "Titled Tuesday Blitz May 30 Late 2023"]
[White "Liu, Kelsey"]
[Black "LangesNasenhaar"]
[WhiteFideId "30944481"]
[WhiteElo "2247"]
[BlackElo "2452"]
[Result "1-0"]
[Round "08"]
[TimeControl "180+2"]
[Date "2023.05.31"]
[WhiteClock "0:00:08"]
[BlackClock "0:00:09"]

1. e4 {[%clk 0:02:58]}  d6 {[%clk 0:03:00]} 2. d4 {[%clk 0:02:58]}  Nf6 {[%clk 0:03:00]} 3. Nc3 {[%clk 0:02:58]}  Nbd7 {[%clk 0:03:01]} 4. Bc4 {[%clk 0:02:58]}  e5 {[%clk 0:03:01]} 5. Nge2 {[%clk 0:02:57]}  c6 {[%clk 0:02:59]} 6. O-O {[%clk 0:02:55]}  b5 {[%clk 0:02:59]} 7. Bd3 {[%clk 0:02:54]}  b4 {[%clk 0:02:55]} 8. Nb1 {[%clk 0:02:54]}  Be7 {[%clk 0:02:56]} 9. a3 {[%clk 0:02:53]}  bxa3 {[%clk 0:02:52]} 10. Nxa3 {[%clk 0:02:52]}  O-O {[%clk 0:02:51]} 11. Nc4 {[%clk 0:02:49]}  Qc7 {[%clk 0:02:40]} 12. Bg5 {[%clk 0:02:47]}  Re8 {[%clk 0:02:37]} 13. Ne3 {[%clk 0:02:40]}  exd4 {[%clk 0:02:31]} 14. Nxd4 {[%clk 0:02:39]}  Bf8 {[%clk 0:02:29]} 15. Qf3 {[%clk 0:02:22]}  Ne5 {[%clk 0:02:25]} 16. Qg3 {[%clk 0:02:13]}  Nh5 {[%clk 0:02:25]} 17. Qh4 {[%clk 0:02:12]}  g6 {[%clk 0:02:22]} 18. f4 {[%clk 0:02:01]}  Nxd3 {[%clk 0:02:07]} 19. cxd3 {[%clk 0:02:02]}  d5 {[%clk 0:01:57]} 20. f5 {[%clk 0:01:45]}  dxe4 {[%clk 0:01:48]} 21. dxe4 {[%clk 0:01:45]}  Bc5 {[%clk 0:01:30]} 22. Ra4 {[%clk 0:01:40]}  Qb6 {[%clk 0:01:17]} 23. fxg6 {[%clk 0:01:17]}  hxg6 {[%clk 0:01:16]} 24. Ndc2 {[%clk 0:00:29]}  Ba6 {[%clk 0:01:12]} 25. Rf3 {[%clk 0:00:22]}  Bb5 {[%clk 0:01:10]} 26. Ra1 {[%clk 0:00:22]}  Bd3 {[%clk 0:01:01]} 27. b4 {[%clk 0:00:20]}  Bd4 {[%clk 0:00:53]} 28. Nxd4 {[%clk 0:00:19]}  Qxd4 {[%clk 0:00:54]} 29. Rd1 {[%clk 0:00:15]}  Rxe4 {[%clk 0:00:53]} 30. Qf2 {[%clk 0:00:14]}  f5 {[%clk 0:00:37]} 31. Qd2 {[%clk 0:00:10]}  Rb8 {[%clk 0:00:21]} 32. Qxd3 {[%clk 0:00:09]}  Qxd3 {[%clk 0:00:21]} 33. Rxd3 {[%clk 0:00:09]}  Rbxb4 {[%clk 0:00:22]} 34. Rd8+ {[%clk 0:00:10]}  Kf7 {[%clk 0:00:21]} 35. Rd7+ {[%clk 0:00:10]}  Ke6 {[%clk 0:00:20]} 36. Rxa7 {[%clk 0:00:10]}  Rb1+ {[%clk 0:00:18]} 37. Kf2 {[%clk 0:00:11]}  Rb2+ {[%clk 0:00:18]} 38. Kg1 {[%clk 0:00:11]}  f4 {[%clk 0:00:15]} 39. Nf1 {[%clk 0:00:05]}  Ree2 {[%clk 0:00:13]} 40. Re7+ {[%clk 0:00:01]}  Kd6 {[%clk 0:00:12]} 41. Rxe2 {[%clk 0:00:02]}  Rxe2 {[%clk 0:00:11]} 42. Bxf4+ {[%clk 0:00:03]}  Kd5 {[%clk 0:00:10]} 43. Bg3 {[%clk 0:00:03]}  c5 {[%clk 0:00:10]} 44. Ra3 {[%clk 0:00:03]}  c4 {[%clk 0:00:10]} 45. Ra5+ {[%clk 0:00:03]}  Kc6 {[%clk 0:00:10]} 46. Bf2 {[%clk 0:00:03]}  Nf4 {[%clk 0:00:08]} 47. Rc5+ {[%clk 0:00:03]}  Kd6 {[%clk 0:00:08]} 48. Rxc4 {[%clk 0:00:04]}  Rd2 {[%clk 0:00:09]} 49. Rxf4 {[%clk 0:00:04]}  Ke5 {[%clk 0:00:08]} 50. Rg4 {[%clk 0:00:04]}  Kf5 {[%clk 0:00:08]} 51. Rg3 {[%clk 0:00:05]}  Rd7 {[%clk 0:00:09]} 52. h3 {[%clk 0:00:06]}  g5 {[%clk 0:00:08]} 53. Kh2 {[%clk 0:00:06]}  Rd1 {[%clk 0:00:08]} 54. Ne3+ {[%clk 0:00:06]}  Kf4 {[%clk 0:00:09]} 55. Nxd1 {[%clk 0:00:07]}  g4 {[%clk 0:00:09]} 56. Rxg4+ {[%clk 0:00:08]} 1-0


[Site "https://www.chess.com"]